[Event "Late-Titled-Tuesday-Blitz-August-29-2023"]
[Site "Chess.com"]
[Date "2023.08.29"]
[Round "10"]
[White "MYMChessAcademy"]
[Black "DenizSeyhanoglu1"]
[Result "0-1"]
[WhiteElo "2228"]
[BlackElo "2316"]
[TimeControl "180+1"]
[EndTime "15:54:09 PDT"]
[Termination "DenizSeyhanoglu1 won by checkmate"]

1. e4 {[%clk 0:03:00.9]} 1... d5 {[%clk 0:02:59]} 2. exd5 {[%clk 0:03:00.7]}
2... Qxd5 {[%clk 0:02:58.7]} 3. d4 {[%clk 0:03:01.2]} 3... Nf6 {[%clk
0:02:57.6]} 4. c4 {[%clk 0:03:00.4]} 4... Qd8 {[%clk 0:02:56.8]} 5. Nf3 {[%clk
0:02:59]} 5... c6 {[%clk 0:02:57.1]} 6. Nc3 {[%clk 0:02:58.3]} 6... Bg4 {[%clk
0:02:57.1]} 7. Be2 {[%clk 0:02:58.3]} 7... e6 {[%clk 0:02:57.2]} 8. h3 {[%clk
0:02:57.4]} 8... Bh5 {[%clk 0:02:56.5]} 9. O-O {[%clk 0:02:57.5]} 9... Nbd7
{[%clk 0:02:56.5]} 10. Be3 {[%clk 0:02:58]} 10... Be7 {[%clk 0:02:54.3]} 11. b3
{[%clk 0:02:53.2]} 11... O-O {[%clk 0:02:53.8]} 12. Ne5 {[%clk 0:02:52.9]} 12...
Bxe2 {[%clk 0:02:51.3]} 13. Qxe2 {[%clk 0:02:53.8]} 13... Nxe5 {[%clk
0:02:47.7]} 14. dxe5 {[%clk 0:02:54.7]} 14... Nd7 {[%clk 0:02:48.1]} 15. f4
{[%clk 0:02:50.3]} 15... Qc7 {[%clk 0:02:45.5]} 16. Rad1 {[%clk 0:02:48.8]}
16... Rad8 {[%clk 0:02:43.9]} 17. Ne4 {[%clk 0:02:48]} 17... Qa5 {[%clk
0:02:35]} 18. Nd6 {[%clk 0:02:45]} 18... Bxd6 {[%clk 0:02:30.3]} 19. Rxd6 {[%clk
0:02:45.9]} 19... Nb6 {[%clk 0:02:22.6]} 20. Rfd1 {[%clk 0:02:44.2]} 20... Nc8
{[%clk 0:02:22.6]} 21. b4 {[%clk 0:02:19.1]} 21... Qc7 {[%clk 0:02:19.7]} 22.
Rxd8 {[%clk 0:02:06.3]} 22... Rxd8 {[%clk 0:02:20.6]} 23. Rxd8+ {[%clk
0:02:00.7]} 23... Qxd8 {[%clk 0:02:21.5]} 24. Qd2 {[%clk 0:02:01]} 24... Qxd2
{[%clk 0:02:19.2]} 25. Bxd2 {[%clk 0:02:01.9]} 25... Nb6 {[%clk 0:02:18.2]} 26.
Be3 {[%clk 0:01:55.4]} 26... Nxc4 {[%clk 0:02:15.1]} 27. Bxa7 {[%clk 0:01:55.4]}
27... Kf8 {[%clk 0:02:12.8]} 28. Kf2 {[%clk 0:01:53.2]} 28... Ke8 {[%clk
0:02:08.1]} 29. Ke2 {[%clk 0:01:52.5]} 29... f6 {[%clk 0:02:00.9]} 30. Bd4
{[%clk 0:01:47.5]} 30... fxe5 {[%clk 0:01:49.6]} 31. fxe5 {[%clk 0:01:48.4]}
31... Na3 {[%clk 0:01:39.4]} 32. Kd3 {[%clk 0:01:43.9]} 32... Kf7 {[%clk
0:01:34.2]} 33. Bb2 {[%clk 0:01:35.9]} 33... Nb5 {[%clk 0:01:31.3]} 34. Kc4
{[%clk 0:01:35.1]} 34... Nc7 {[%clk 0:01:16.8]} 35. Kc5 {[%clk 0:01:26.4]} 35...
Nd5 {[%clk 0:01:15.5]} 36. a4 {[%clk 0:01:26.2]} 36... Ke7 {[%clk 0:01:12.5]}
37. b5 {[%clk 0:01:25.9]} 37... cxb5 {[%clk 0:01:06.6]} 38. axb5 {[%clk
0:01:25]} 38... Kd7 {[%clk 0:01:05.4]} 39. Bc1 {[%clk 0:01:17.9]} 39... b6+
{[%clk 0:01:03.2]} 40. Kc4 {[%clk 0:01:18.2]} 40... Ke7 {[%clk 0:01:03.3]} 41.
Bd2 {[%clk 0:01:13.7]} 41... Kf7 {[%clk 0:01:03.3]} 42. Kd3 {[%clk 0:01:12.9]}
42... Kg6 {[%clk 0:01:01.9]} 43. Ke4 {[%clk 0:01:13.1]} 43... Kh5 {[%clk
0:00:57.9]} 44. g3 {[%clk 0:01:12.9]} 44... h6 {[%clk 0:00:55.5]} 45. Kf3 {[%clk
0:01:00]} 45... Kg6 {[%clk 0:00:52.6]} 46. Ke4 {[%clk 0:00:59]} 46... Kh5 {[%clk
0:00:50.1]} 47. Kf3 {[%clk 0:00:58.5]} 47... g5 {[%clk 0:00:50.1]} 48. g4+
{[%clk 0:00:51.1]} 48... Kg6 {[%clk 0:00:50.3]} 49. Ke4 {[%clk 0:00:47.3]} 49...
h5 {[%clk 0:00:50.1]} 50. Kf3 {[%clk 0:00:44.9]} 50... h4 {[%clk 0:00:48.2]} 51.
Ke4 {[%clk 0:00:44.4]} 51... Nc7 {[%clk 0:00:46]} 52. Be3 {[%clk 0:00:36.4]}
52... Nxb5 {[%clk 0:00:46.1]} 53. Bxb6 {[%clk 0:00:36.7]} 53... Nc3+ {[%clk
0:00:46.2]} 54. Kf3 {[%clk 0:00:34.8]} 54... Nd5 {[%clk 0:00:44]} 55. Bd4 {[%clk
0:00:32.8]} 55... Nf4 {[%clk 0:00:42.3]} 56. Be3 {[%clk 0:00:15.4]} 56... Nxh3
{[%clk 0:00:41.9]} 57. Bd2 {[%clk 0:00:08.5]} 57... Kh6 {[%clk 0:00:41.6]} 58.
Be3 {[%clk 0:00:08.2]} 58... Kg6 {[%clk 0:00:40.2]} 59. Bd2 {[%clk 0:00:08.3]}
59... Kf7 {[%clk 0:00:36.3]} 60. Be3 {[%clk 0:00:08.1]} 60... Ke7 {[%clk
0:00:36.2]} 61. Bd2 {[%clk 0:00:06.2]} 61... Kd7 {[%clk 0:00:36.3]} 62. Be3
{[%clk 0:00:06.3]} 62... Kc6 {[%clk 0:00:36.4]} 63. Bd2 {[%clk 0:00:06.6]} 63...
Kd5 {[%clk 0:00:36.5]} 64. Kg2 {[%clk 0:00:05.1]} 64... Nf4+ {[%clk 0:00:34.1]}
65. Bxf4 {[%clk 0:00:03.4]} 65... gxf4 {[%clk 0:00:35]} 66. g5 {[%clk 0:00:04]}
66... Kxe5 {[%clk 0:00:34.7]} 67. g6 {[%clk 0:00:04.9]} 67... Kf6 {[%clk
0:00:34.9]} 68. g7 {[%clk 0:00:05.8]} 68... Kxg7 {[%clk 0:00:35.1]} 69. Kf3
{[%clk 0:00:06.7]} 69... h3 {[%clk 0:00:35.1]} 70. Kxf4 {[%clk 0:00:07.6]} 70...
h2 {[%clk 0:00:35.2]} 71. Kg3 {[%clk 0:00:08.5]} 71... h1=Q {[%clk 0:00:35.1]}
72. Kf4 {[%clk 0:00:08.7]} 72... Qe1 {[%clk 0:00:34.4]} 73. Kg5 {[%clk
0:00:08.4]} 73... Qe5+ {[%clk 0:00:33.6]} 74. Kg4 {[%clk 0:00:09.3]} 74... Kg6
{[%clk 0:00:33.9]} 75. Kh4 {[%clk 0:00:09.1]} 75... Qg5+ {[%clk 0:00:31.1]} 76.
Kh3 {[%clk 0:00:10]} 76... Kf5 {[%clk 0:00:30.9]} 77. Kh2 {[%clk 0:00:09.9]}
77... Kf4 {[%clk 0:00:31]} 78. Kh1 {[%clk 0:00:10.8]} 78... Kf3 {[%clk
0:00:30.6]} 79. Kh2 {[%clk 0:00:11.7]} 79... Qg2# {[%clk 0:00:30]} 0-1

[Event "Late-Titled-Tuesday-Blitz-August-29-2023"]
[Site "Chess.com"]
[Date "2023.08.29"]
[Round "10"]
[White "Kacparov"]
[Black "BogdanDeac"]
[Result "1/2-1/2"]
[WhiteElo "2924"]
[BlackElo "3017"]
[TimeControl "180+1"]
[EndTime "15:54:10 PDT"]
[Termination "Game drawn by repetition"]

1. e4 {[%clk 0:03:00.9]} 1... e5 {[%clk 0:02:59.6]} 2. Nf3 {[%clk 0:03:00.6]}
2... Nf6 {[%clk 0:03:00.2]} 3. Nxe5 {[%clk 0:02:59.4]} 3... d6 {[%clk
0:03:00.4]} 4. Nf3 {[%clk 0:02:59.8]} 4... Nxe4 {[%clk 0:03:00.8]} 5. d4 {[%clk
0:03:00.4]} 5... d5 {[%clk 0:03:01.1]} 6. Bd3 {[%clk 0:03:00.4]} 6... Bf5 {[%clk
0:03:01.7]} 7. O-O {[%clk 0:03:00.4]} 7... Be7 {[%clk 0:03:02.4]} 8. Re1 {[%clk
0:02:57.7]} 8... O-O {[%clk 0:03:02.6]} 9. Nbd2 {[%clk 0:02:57.4]} 9... Nd6
{[%clk 0:03:02.8]} 10. Nf1 {[%clk 0:02:56.5]} 10... c6 {[%clk 0:03:03.2]} 11.
Ng3 {[%clk 0:02:56.3]} 11... Bxd3 {[%clk 0:03:03.4]} 12. Qxd3 {[%clk 0:02:57.2]}
12... Na6 {[%clk 0:03:04]} 13. c3 {[%clk 0:02:56.9]} 13... Nc7 {[%clk
0:03:02.8]} 14. Bf4 {[%clk 0:02:56.9]} 14... g6 {[%clk 0:02:56]} 15. Re2 {[%clk
0:02:55]} 15... Ne6 {[%clk 0:02:54.7]} 16. Bh6 {[%clk 0:02:43.2]} 16... Re8
{[%clk 0:02:54.4]} 17. Rae1 {[%clk 0:02:43.2]} 17... Bf8 {[%clk 0:02:37]} 18.
Bxf8 {[%clk 0:02:37.9]} 18... Nxf8 {[%clk 0:02:13.2]} 19. Rxe8 {[%clk
0:02:35.1]} 19... Nxe8 {[%clk 0:02:13.6]} 20. Ne5 {[%clk 0:02:34.5]} 20... Nd6
{[%clk 0:02:09.3]} 21. Qf3 {[%clk 0:02:21.9]} 21... Qg5 {[%clk 0:01:57.3]} 22.
Nf1 {[%clk 0:01:56.7]} 22... Kg7 {[%clk 0:01:45.8]} 23. g3 {[%clk 0:01:45.9]}
23... h5 {[%clk 0:01:39.5]} 24. h4 {[%clk 0:01:46]} 24... Qf5 {[%clk 0:01:35.2]}
25. Qxf5 {[%clk 0:01:41.3]} 25... Nxf5 {[%clk 0:01:36.1]} 26. Nd3 {[%clk
0:01:41.1]} 26... Nd6 {[%clk 0:01:34.2]} 27. Nd2 {[%clk 0:01:39.3]} 27... Ne6
{[%clk 0:01:28.3]} 28. Nc5 {[%clk 0:01:33.9]} 28... Nxc5 {[%clk 0:01:24.9]} 29.
dxc5 {[%clk 0:01:34.8]} 29... Nf5 {[%clk 0:01:25.3]} 30. Nb3 {[%clk 0:01:25.8]}
30... Kf6 {[%clk 0:01:20.4]} 31. Kg2 {[%clk 0:01:25.7]} 31... a5 {[%clk
0:01:20]} 32. a4 {[%clk 0:01:17.9]} 32... Ng7 {[%clk 0:00:33]} 33. f4 {[%clk
0:01:18.1]} 33... Ne6 {[%clk 0:00:30.5]} 34. Kf3 {[%clk 0:01:18.4]} 34... Ra6
{[%clk 0:00:28]} 35. Re2 {[%clk 0:01:16.6]} 35... Ra8 {[%clk 0:00:26.8]} 36. Re1
{[%clk 0:01:15.9]} 36... Rb8 {[%clk 0:00:23.7]} 37. Re2 {[%clk 0:01:11.4]} 37...
b6 {[%clk 0:00:18.1]} 38. cxb6 {[%clk 0:01:10]} 38... Rxb6 {[%clk 0:00:19]} 39.
Nxa5 {[%clk 0:01:09.2]} 39... Nc5 {[%clk 0:00:19.6]} 40. b4 {[%clk 0:00:43.8]}
40... Nxa4 {[%clk 0:00:19.6]} 41. Re3 {[%clk 0:00:43.2]} 41... c5 {[%clk
0:00:17.5]} 42. Rd3 {[%clk 0:00:38.2]} 42... Ke6 {[%clk 0:00:10.1]} 43. Nb3
{[%clk 0:00:25.2]} 43... cxb4 {[%clk 0:00:09.2]} 44. cxb4 {[%clk 0:00:21.7]}
44... Rxb4 {[%clk 0:00:09.3]} 45. Nd4+ {[%clk 0:00:21.9]} 45... Kd6 {[%clk
0:00:08.9]} 46. f5 {[%clk 0:00:21.7]} 46... Nb2 {[%clk 0:00:05.6]} 47. Rd2
{[%clk 0:00:20.2]} 47... Nc4 {[%clk 0:00:06]} 48. Rd1 {[%clk 0:00:20.2]} 48...
Ne5+ {[%clk 0:00:05.1]} 49. Kg2 {[%clk 0:00:18.8]} 49... Ng4 {[%clk 0:00:04.7]}
50. Kf3 {[%clk 0:00:14.2]} 50... Ne5+ {[%clk 0:00:04.7]} 51. Kg2 {[%clk
0:00:14.4]} 51... Rc4 {[%clk 0:00:04.9]} 52. fxg6 {[%clk 0:00:14.2]} 52... fxg6
{[%clk 0:00:05.8]} 53. Ne2 {[%clk 0:00:13.6]} 53... Rc2 {[%clk 0:00:05.6]} 54.
Kf1 {[%clk 0:00:14]} 54... Ng4 {[%clk 0:00:05.4]} 55. Ra1 {[%clk 0:00:12.8]}
55... Ne3+ {[%clk 0:00:05.4]} 56. Ke1 {[%clk 0:00:12.8]} 56... Rb2 {[%clk
0:00:05]} 57. Ra6+ {[%clk 0:00:11.9]} 57... Ke5 {[%clk 0:00:05.4]} 58. Rxg6
{[%clk 0:00:11.9]} 58... Ke4 {[%clk 0:00:04.9]} 59. Re6+ {[%clk 0:00:11]} 59...
Kd3 {[%clk 0:00:04]} 60. Nf4+ {[%clk 0:00:10.2]} 60... Kd4 {[%clk 0:00:04.4]}
61. Ne2+ {[%clk 0:00:09.4]} 61... Kd3 {[%clk 0:00:04.4]} 62. Nf4+ {[%clk
0:00:06.8]} 62... Kd4 {[%clk 0:00:04.9]} 63. Ne2+ {[%clk 0:00:07.1]} 63... Kd3
{[%clk 0:00:05.3]} 1/2-1/2

[Event "Late-Titled-Tuesday-Blitz-August-29-2023"]
[Site "Chess.com"]
[Date "2023.08.29"]
[Round "10"]
[White "KejJaj"]
[Black "jinxy2009"]
[Result "0-1"]
[WhiteElo "2217"]
[BlackElo "2349"]
[TimeControl "180+1"]
[EndTime "15:54:18 PDT"]
[Termination "jinxy2009 won by resignation"]

1. d4 {[%clk 0:03:00.9]} 1... Nf6 {[%clk 0:02:58.3]} 2. Bf4 {[%clk 0:03:01.4]}
2... d5 {[%clk 0:02:55.2]} 3. e3 {[%clk 0:03:01.8]} 3... e6 {[%clk 0:02:54.6]}
4. Nf3 {[%clk 0:03:00.9]} 4... Bd6 {[%clk 0:02:55.5]} 5. Nbd2 {[%clk 0:03:00.5]}
5... O-O {[%clk 0:02:54.8]} 6. Bg3 {[%clk 0:03:00]} 6... c5 {[%clk 0:02:52.3]}
7. c3 {[%clk 0:02:59.4]} 7... Qc7 {[%clk 0:02:52.7]} 8. Bd3 {[%clk 0:02:45.7]}
8... Nbd7 {[%clk 0:02:50.7]} 9. Bxd6 {[%clk 0:02:34.5]} 9... Qxd6 {[%clk
0:02:49]} 10. O-O {[%clk 0:02:32.3]} 10... e5 {[%clk 0:02:49]} 11. dxc5 {[%clk
0:02:29.4]} 11... Nxc5 {[%clk 0:02:48.2]} 12. Bc2 {[%clk 0:02:26.4]} 12... Bg4
{[%clk 0:02:46.1]} 13. h3 {[%clk 0:02:24.6]} 13... Bh5 {[%clk 0:02:44.6]} 14.
Qe1 {[%clk 0:02:17.9]} 14... Bg6 {[%clk 0:02:37]} 15. Qd1 {[%clk 0:02:13.2]}
15... Rad8 {[%clk 0:02:22.3]} 16. Nb3 {[%clk 0:02:13.1]} 16... Nce4 {[%clk
0:02:18]} 17. Bxe4 {[%clk 0:01:59.9]} 17... Nxe4 {[%clk 0:02:16.1]} 18. Qe2
{[%clk 0:01:54.8]} 18... f6 {[%clk 0:02:03.5]} 19. Rfd1 {[%clk 0:01:54.2]} 19...
Bf7 {[%clk 0:02:02.4]} 20. Nbd2 {[%clk 0:01:48.5]} 20... Nxd2 {[%clk 0:02:00.2]}
21. Rxd2 {[%clk 0:01:48.1]} 21... Rfe8 {[%clk 0:01:57.8]} 22. Rad1 {[%clk
0:01:47.8]} 22... Qb6 {[%clk 0:01:57.8]} 23. Ne1 {[%clk 0:01:38.1]} 23... a5
{[%clk 0:01:55.8]} 24. Qg4 {[%clk 0:01:13.5]} 24... h5 {[%clk 0:01:41.5]} 25.
Qa4 {[%clk 0:01:13]} 25... Re7 {[%clk 0:01:26.7]} 26. Nf3 {[%clk 0:01:11.8]}
26... Red7 {[%clk 0:01:25.9]} 27. Qc2 {[%clk 0:01:00.4]} 27... Qc6 {[%clk
0:01:15.5]} 28. Qf5 {[%clk 0:00:55]} 28... g6 {[%clk 0:01:14.3]} 29. Qc2 {[%clk
0:00:51.8]} 29... Kg7 {[%clk 0:01:12.6]} 30. Nh4 {[%clk 0:00:49.7]} 30... b5
{[%clk 0:01:11.6]} 31. a3 {[%clk 0:00:48.5]} 31... f5 {[%clk 0:00:58.2]} 32. Nf3
{[%clk 0:00:44.9]} 32... Qf6 {[%clk 0:00:52.2]} 33. Kh1 {[%clk 0:00:34.6]} 33...
h4 {[%clk 0:00:20.4]} 34. b3 {[%clk 0:00:32.2]} 34... g5 {[%clk 0:00:20.3]} 35.
Nh2 {[%clk 0:00:31.6]} 35... Bg6 {[%clk 0:00:18.8]} 36. Qa2 {[%clk 0:00:26.7]}
36... Bf7 {[%clk 0:00:16]} 37. c4 {[%clk 0:00:25.1]} 37... bxc4 {[%clk
0:00:14.4]} 38. bxc4 {[%clk 0:00:26]} 38... d4 {[%clk 0:00:14.9]} 39. exd4
{[%clk 0:00:25.1]} 39... exd4 {[%clk 0:00:15.8]} 40. Qc2 {[%clk 0:00:23.3]}
40... Be6 {[%clk 0:00:14.6]} 41. Nf3 {[%clk 0:00:22.6]} 41... g4 {[%clk
0:00:14.4]} 42. Ng1 {[%clk 0:00:20.3]} 42... Qf7 {[%clk 0:00:10.9]} 43. Qb2
{[%clk 0:00:18.3]} 43... Qf6 {[%clk 0:00:09.9]} 44. Ne2 {[%clk 0:00:17.7]} 44...
gxh3 {[%clk 0:00:09.8]} 45. gxh3 {[%clk 0:00:16.7]} 45... d3 {[%clk 0:00:09.7]}
46. Qxf6+ {[%clk 0:00:15.9]} 46... Kxf6 {[%clk 0:00:10.6]} 47. Nf4 {[%clk
0:00:16.3]} 47... Bxc4 {[%clk 0:00:10.8]} 48. Kg2 {[%clk 0:00:15.2]} 48... Ke5
{[%clk 0:00:11.2]} 49. Kf3 {[%clk 0:00:15.2]} 49... Bd5+ {[%clk 0:00:11.1]} 50.
Nxd5 {[%clk 0:00:15]} 50... Rxd5 {[%clk 0:00:11]} 51. Ke3 {[%clk 0:00:15.6]}
51... f4+ {[%clk 0:00:11.5]} 52. Kf3 {[%clk 0:00:14.8]} 52... Rd4 {[%clk
0:00:12]} 53. Kg4 {[%clk 0:00:14.8]} 53... R8d5 {[%clk 0:00:11.7]} 54. Kxh4
{[%clk 0:00:14.5]} 54... Ke4 {[%clk 0:00:12.1]} 55. Kg4 {[%clk 0:00:14.3]} 55...
f3 {[%clk 0:00:12.6]} 56. h4 {[%clk 0:00:13.9]} 56... Rc4 {[%clk 0:00:12.9]} 57.
Kg3 {[%clk 0:00:13.5]} 57... Rc2 {[%clk 0:00:12.4]} 58. Re1+ {[%clk 0:00:13.6]}
58... Kd4 {[%clk 0:00:12.2]} 59. Rxc2 {[%clk 0:00:13.1]} 59... dxc2 {[%clk
0:00:13.1]} 60. Rc1 {[%clk 0:00:12.4]} 60... Kd3 {[%clk 0:00:13.6]} 61. Kxf3
{[%clk 0:00:12.4]} 61... Kd2 {[%clk 0:00:13.8]} 62. Rg1 {[%clk 0:00:11.8]} 62...
c1=Q {[%clk 0:00:13.9]} 63. Rxc1 {[%clk 0:00:12]} 63... Kxc1 {[%clk 0:00:14.8]}
64. Kg4 {[%clk 0:00:12.4]} 64... Kb2 {[%clk 0:00:14.9]} 65. f4 {[%clk
0:00:12.4]} 65... Kxa3 {[%clk 0:00:14.5]} 66. f5 {[%clk 0:00:12.9]} 66... Rd8
{[%clk 0:00:14.7]} 67. Kg5 {[%clk 0:00:13]} 67... Kb3 {[%clk 0:00:15.4]} 68. Kg6
{[%clk 0:00:13.2]} 68... a4 {[%clk 0:00:16]} 69. f6 {[%clk 0:00:13.8]} 69... a3
{[%clk 0:00:16.6]} 70. h5 {[%clk 0:00:13.7]} 70... a2 {[%clk 0:00:17]} 71. h6
{[%clk 0:00:14.2]} 71... a1=Q {[%clk 0:00:17.3]} 72. h7 {[%clk 0:00:14.5]} 72...
Qg1+ {[%clk 0:00:17]} 73. Kf7 {[%clk 0:00:14.5]} 73... Rh8 {[%clk 0:00:16.9]}
74. Ke7 {[%clk 0:00:14.1]} 74... Rxh7+ {[%clk 0:00:17.3]} 75. f7 {[%clk
0:00:15]} 75... Qg7 {[%clk 0:00:17.2]} 76. Kd6 {[%clk 0:00:14.8]} 76... Qxf7
{[%clk 0:00:18.1]} 0-1

[Event "Late-Titled-Tuesday-Blitz-August-29-2023"]
[Site "Chess.com"]
[Date "2023.08.29"]
[Round "10"]
[White "Defenstrator"]
[Black "MaxLeto"]
[Result "1/2-1/2"]
[WhiteElo "2268"]
[BlackElo "2390"]
[TimeControl "180+1"]
[EndTime "15:54:19 PDT"]
[Termination "Game drawn - insufficient material"]

1. e3 {[%clk 0:02:41.3]} 1... d5 {[%clk 0:02:58.6]} 2. Ke2 {[%clk 0:02:35.6]}
2... c6 {[%clk 0:02:59.5]} 3. Ke1 {[%clk 0:02:28.5]} 3... Nf6 {[%clk 0:03:00.4]}
4. c4 {[%clk 0:02:27.6]} 4... g6 {[%clk 0:03:01.3]} 5. Nc3 {[%clk 0:02:28.2]}
5... Bg7 {[%clk 0:03:02.2]} 6. Nf3 {[%clk 0:02:26.2]} 6... O-O {[%clk
0:03:02.7]} 7. b3 {[%clk 0:02:24.5]} 7... Na6 {[%clk 0:02:37.4]} 8. Bb2 {[%clk
0:01:56.9]} 8... Nc5 {[%clk 0:02:34.3]} 9. d4 {[%clk 0:01:49.7]} 9... Nce4
{[%clk 0:02:33.7]} 10. Nxe4 {[%clk 0:01:44.6]} 10... Nxe4 {[%clk 0:02:34.6]} 11.
Nd2 {[%clk 0:01:45.5]} 11... Bf5 {[%clk 0:02:31.4]} 12. f3 {[%clk 0:01:34.8]}
12... Nxd2 {[%clk 0:02:05.7]} 13. Qxd2 {[%clk 0:01:32.7]} 13... Re8 {[%clk
0:02:06.6]} 14. Kf2 {[%clk 0:01:24.4]} 14... e5 {[%clk 0:01:53.2]} 15. dxe5
{[%clk 0:01:23.2]} 15... Bxe5 {[%clk 0:01:54.1]} 16. cxd5 {[%clk 0:01:02.8]}
16... Qxd5 {[%clk 0:00:45.2]} 17. Qxd5 {[%clk 0:01:00.2]} 17... cxd5 {[%clk
0:00:44.2]} 18. Bxe5 {[%clk 0:00:59.5]} 18... Rxe5 {[%clk 0:00:44.3]} 19. Rc1
{[%clk 0:00:50.5]} 19... Rae8 {[%clk 0:00:43.2]} 20. Bb5 {[%clk 0:00:44.7]}
20... R8e7 {[%clk 0:00:37.7]} 21. g4 {[%clk 0:00:37.9]} 21... d4 {[%clk
0:00:19.8]} 22. exd4 {[%clk 0:00:29.8]} 22... Rxb5 {[%clk 0:00:17.8]} 23. gxf5
{[%clk 0:00:29.7]} 23... Rxf5 {[%clk 0:00:18.7]} 24. Rc5 {[%clk 0:00:20.5]}
24... Rf4 {[%clk 0:00:17.8]} 25. Rd1 {[%clk 0:00:16.5]} 25... f5 {[%clk
0:00:11.2]} 26. d5 {[%clk 0:00:16.2]} 26... Kf7 {[%clk 0:00:09.7]} 27. d6 {[%clk
0:00:16.4]} 27... Rd7 {[%clk 0:00:10.4]} 28. Rc7 {[%clk 0:00:14.9]} 28... Ke8
{[%clk 0:00:07.6]} 29. Rc8+ {[%clk 0:00:06.6]} 29... Kf7 {[%clk 0:00:07.6]} 30.
Rc7 {[%clk 0:00:06.5]} 30... Ke8 {[%clk 0:00:02]} 31. Re1+ {[%clk 0:00:06.8]}
31... Kd8 {[%clk 0:00:01.9]} 32. Re7 {[%clk 0:00:05.4]} 32... Rxd6 {[%clk
0:00:01.4]} 33. Rxh7 {[%clk 0:00:04.3]} 33... Rfd4 {[%clk 0:00:01.3]} 34. Rxb7
{[%clk 0:00:03.6]} 34... Rd7 {[%clk 0:00:01.6]} 35. Rxa7 {[%clk 0:00:02.6]}
35... Rd2+ {[%clk 0:00:01.7]} 36. Kg3 {[%clk 0:00:02.8]} 36... Rxh7 {[%clk
0:00:01.4]} 37. Rxh7 {[%clk 0:00:03]} 37... Rxa2 {[%clk 0:00:02.3]} 38. Rg7
{[%clk 0:00:02.9]} 38... Ra6 {[%clk 0:00:02.4]} 39. h4 {[%clk 0:00:02.3]} 39...
Ke8 {[%clk 0:00:02.9]} 40. Kf4 {[%clk 0:00:03.1]} 40... Rb6 {[%clk 0:00:02.7]}
41. Kg5 {[%clk 0:00:02.5]} 41... Rxb3 {[%clk 0:00:03.1]} 42. Rxg6 {[%clk
0:00:02.7]} 42... Rxf3 {[%clk 0:00:03.6]} 43. Rf6 {[%clk 0:00:02.6]} 43... Rg3+
{[%clk 0:00:02.8]} 44. Kh6 {[%clk 0:00:02.5]} 44... Rf3 {[%clk 0:00:02.5]} 45.
h5 {[%clk 0:00:03]} 45... Ke7 {[%clk 0:00:02.8]} 46. Ra6 {[%clk 0:00:02.7]}
46... f4 {[%clk 0:00:03]} 47. Kg7 {[%clk 0:00:02.8]} 47... Rg3+ {[%clk
0:00:03.2]} 48. Rg6 {[%clk 0:00:03.3]} 48... Rxg6+ {[%clk 0:00:02.2]} 49. hxg6
{[%clk 0:00:03.2]} 49... f3 {[%clk 0:00:02.9]} 50. Kh8 {[%clk 0:00:03.1]} 50...
f2 {[%clk 0:00:03.6]} 51. g7 {[%clk 0:00:04]} 51... f1=Q {[%clk 0:00:03.5]} 52.
g8=Q {[%clk 0:00:04.9]} 52... Qa1+ {[%clk 0:00:02.4]} 53. Kh7 {[%clk 0:00:04.6]}
53... Qh1+ {[%clk 0:00:02.3]} 54. Kg6 {[%clk 0:00:04.6]} 54... Qg2+ {[%clk
0:00:02.7]} 55. Kh7 {[%clk 0:00:05.5]} 55... Qh3+ {[%clk 0:00:02.9]} 56. Kg7
{[%clk 0:00:05.6]} 56... Qg4+ {[%clk 0:00:03.5]} 57. Kh8 {[%clk 0:00:06.1]}
57... Qf5 {[%clk 0:00:01.7]} 58. Qg7+ {[%clk 0:00:05.8]} 58... Ke8 {[%clk
0:00:02.1]} 59. Qa7 {[%clk 0:00:04.3]} 59... Qf6+ {[%clk 0:00:02]} 60. Kh7
{[%clk 0:00:04.3]} 60... Qf7+ {[%clk 0:00:02.6]} 61. Qxf7+ {[%clk 0:00:04.2]}
61... Kxf7 {[%clk 0:00:03.5]} 1/2-1/2